fUSD/lending_fUSD_20260212
["ID","MTS","AMOUNT","RATE_DAILY","PERIOD"]
[405116858,1770854448872,781.35420659,0.00035616,120]
[405116874,1770854894570,92863.0,0.00035616,120]
[405116885,1770855031861,-261.30518747,0.00014798,2]
[405116886,1770855031873,-378.23771447,0.00014798,2]
[405116887,1770855031927,-504.84909806,0.00014798,2]
[405116888,1770855031938,-46.7210001,0.00014899,2]
[405116892,1770855037875,-176.68469157,0.00014899,2]
[405116894,1770855037885,-177.08931927,0.000149,2]
[405116896,1770855037896,-157.03454128,0.00014989,2]
[405116897,1770855037906,-319.07783769,0.00014998,2]
[405116898,1770855037916,-300.0,0.00014998,2]
[405116899,1770855037926,-300.0,0.00014998,2]
[405116900,1770855037937,-1200.0,0.00014998,2]
[405116901,1770855037946,-27825.74673877,0.00014999,2]
[405116902,1770855038045,-1086.8797393,0.00014999,2]
[405117006,1770855039850,-3471087.37352193,0.00014999,2]
[405117007,1770855039860,-315.77193603,0.00015,2]
[405117008,1770855039870,-415.23509766,0.00015,2]
[405117009,1770855039880,-440.10088806,0.00015,2]
[405117010,1770855039889,-1261.08220983,0.00015,2]
[405117011,1770855039899,-280.51398218,0.00015091,2]
[405117012,1770855039909,-375.3041426,0.00015099,2]
[405117013,1770855039918,-500.0,0.00015099,2]
[405117014,1770855039929,-593.12757555,0.00015099,2]
[405117015,1770855039938,-218.62213783,0.00015099,2]
[405117016,1770855039948,-334.76577731,0.00015099,2]
[405117017,1770855039958,-500.0,0.00015099,2]
[405117018,1770855039968,-270.53,0.00015191,2]
[405117019,1770855039977,-9999.99,0.00015191,2]
[405117020,1770855039987,-150.99,0.00015191,2]
[405117021,1770855039996,-166.66,0.00015226,2]
[405117022,1770855040007,-223.40569164,0.00015328,2]
[405117023,1770855040019,-223.40569164,0.00015756,2]
[405117024,1770855040028,-1300.0,0.00016082,2]
[405117025,1770855040038,-29999.99,0.00016082,2]
[405117026,1770855040047,-500.0,0.00016084,2]
[405117027,1770855040059,-1000.0,0.00016103,2]
[405117028,1770855040069,-500.0,0.00016164,2]
[405117029,1770855040078,-223.40569164,0.00016185,2]
[405117030,1770855040090,-570.46,0.0001634,2]
[405117031,1770855040100,-338.45,0.0001634,2]
[405117032,1770855040109,-150.0,0.0001634,2]
[405117033,1770855040119,-500.0,0.00016356,2]
[405117034,1770855040128,-500.0,0.00016356,2]
[405117035,1770855040138,-177.08931927,0.000164,2]
[405117036,1770855040147,-222.0,0.00016414,2]
[405117037,1770855040157,-1680.0,0.00016498,2]
[405117039,1770855040167,-906.0,0.00016509,2]
[405117041,1770855040176,-223.40569164,0.00016614,2]
[405117043,1770855040186,-191.49,0.0001664,2]
[405117045,1770855040195,-165.72983817,0.0001692,2]
[405117047,1770855040205,-906.0,0.00017008,2]
[405117049,1770855040214,-841.0,0.0001704,2]
[405117051,1770855040224,-223.40569164,0.00017043,2]
[405117053,1770855040234,-500.0,0.00017151,2]
[405117055,1770855040244,-338.45,0.00017157,2]
[405117057,1770855040253,-1000.0,0.0001726,2]
[405117059,1770855040262,-1246.0,0.0001736,2]
[405117061,1770855040272,-2000.0,0.000174,2]
[405117064,1770855040282,-1300.0,0.00017452,7]
[405117066,1770855040291,-223.40569164,0.00017471,2]
[405117068,1770855040300,-906.0,0.00017508,2]
[405117070,1770855040309,-1000.0,0.00017534,2]
[405117072,1770855040318,-160.0,0.0001756,2]
[405117074,1770855040328,-2000.0,0.000176,2]
[405117076,1770855040338,-2793.21248976,0.0001764,2]
[405117078,1770855040347,-160.0,0.0001768,2]
[405117080,1770855040356,-500.0,0.00017808,2]
[405117081,1770855040366,-500.0,0.00017808,2]
[405117082,1770855040376,-500.0,0.00017808,2]
[405117083,1770855040386,-644.58506819,0.00017808,2]
[405117084,1770855040395,-500.0,0.00017808,2]
[405117085,1770855040404,-500.0,0.00017808,2]
[405117086,1770855040413,-500.0,0.00017808,2]
[405117087,1770855040423,-500.0,0.00017808,2]
[405117088,1770855040432,-500.0,0.00017808,2]
[405117089,1770855040441,-500.0,0.00017808,2]
[405117090,1770855040450,-641.16828455,0.00017808,2]
[405117091,1770855040459,-641.16828455,0.00017808,2]
[405117092,1770855040469,-641.16828455,0.00017808,2]
[405117093,1770855040479,-641.16828455,0.00017808,2]
[405117094,1770855040488,-641.16828455,0.00017808,2]
[405117095,1770855040497,-641.16828455,0.00017808,2]
[405117096,1770855040506,-641.16828455,0.00017808,2]
[405117097,1770855040516,-641.16828455,0.00017808,2]
[405117098,1770855040526,-641.16828455,0.00017808,2]
[405117099,1770855040536,-641.16828455,0.00017808,2]
[405117100,1770855040546,-641.16828455,0.00017808,2]
[405117101,1770855040555,-641.16828455,0.00017808,2]
[405117102,1770855040564,-735.61063998,0.00017808,2]
[405117103,1770855040574,-735.61063998,0.00017808,2]
[405117104,1770855040584,-735.61063998,0.00017808,2]
[405117105,1770855040593,-735.61063998,0.00017808,2]
[405117106,1770855040602,-150.0,0.00017808,2]
[405117107,1770855040612,-1000.0,0.00017808,2]
[405117108,1770855040621,-2000.0,0.0001782,2]
[405117109,1770855040631,-2000.0,0.0001782,2]
[405117110,1770855040641,-2000.0,0.0001782,2]
[405117111,1770855040650,-2000.0,0.0001782,2]
[405117112,1770855040659,-200.0,0.00017855,2]
[405117113,1770855040668,-200.0,0.00017856,2]
[405117114,1770855040678,-150.0,0.00017863,2]
[405117115,1770855040688,-117262.1973,0.000179,2]
[405117116,1770855040697,-10000.0,0.000179,2]
[405117117,1770855040706,-1000.0,0.000179,2]
[405117118,1770855040716,-223.40569164,0.000179,2]
[405117119,1770855040725,-177.08931927,0.000179,2]
[405117120,1770855040735,-5134.0,0.000179,2]
[405117121,1770855040744,-338.45,0.00017974,2]
[405117122,1770855040753,-157.03454128,0.0001799,2]
[405117123,1770855040763,-10211.5698016,0.00017999,2]
[405117124,1770855040772,-439757.34975,0.00017999,2]
[405117125,1770855040781,-300.0,0.00017999,2]
[405117126,1770855040790,-66325.822502,0.00017999,2]
[405117127,1770855040800,-5672.5388725,0.00017999,2]
[405117128,1770855040810,-101065.0229619,0.00017999,2]
[405117129,1770855040820,-3336.2330256,0.00017999,2]
[405117130,1770855040829,-155.735,0.00017999,2]
[405117131,1770855040839,-300.0,0.00017999,2]
[405117132,1770855040848,-3336.0910134,0.00017999,2]
[405117133,1770855040858,-5826.9582484,0.00017999,2]
[405117134,1770855040867,-300.0,0.00017999,2]
[405117135,1770855040876,-666.0,0.00017999,2]
[405117136,1770855040886,-300.0,0.00017999,2]
[405117137,1770855040895,-539.52193569,0.00017999,2]
[405117138,1770855040906,-164.69608781,0.00017999,2]
[405117139,1770855040915,-283247.52691631,0.00018,2]
[405117140,1770855040924,-194125.14613502,0.00018,2]
[405117141,1770855040939,-387.9373851,0.00018,2]
[405117142,1770855040950,-3338.78006525,0.00018,2]
[405117143,1770855041016,-1563.62092573,0.00018,2]
[405117187,1770855047473,-262.24436144,0.000179,2]
[405117189,1770855047483,-329.59097831,0.000179,2]
[405117191,1770855047493,-346.42763253,0.000179,2]
[405117192,1770855047503,-902.31499456,0.000179,2]
[405117193,1770855047513,-26178.39337316,0.00018,2]
[405117332,1770855453479,200.0,0.00034652,120]
[405117333,1770855453755,200.0,0.00028876,120]
[405117370,1770855669612,-272.0,0.00014685,2]
[405117371,1770855669635,-2749.30031593,0.00014685,2]
[405117372,1770855669659,-915.513,0.00014699,2]
[405117373,1770855669683,-300.0,0.00014699,2]
[405117374,1770855669707,-222.0,0.00014699,2]
[405117375,1770855669732,-365.93150598,0.000147,3]
[405117376,1770855669757,-1597.27545914,0.000147,3]
[405117377,1770855669782,-527.88013547,0.000147,3]
[405117378,1770855669808,-495.49040957,0.000147,3]
[405117379,1770855669830,-2311.45857641,0.000147,2]
[405117380,1770855669854,-222.31934015,0.00014799,2]
[405117381,1770855669877,-1362.86462721,0.00014799,2]
[405117382,1770855669901,-195.47998022,0.00014872,2]
[405117383,1770855669925,-150.0,0.00014872,2]
[405117384,1770855669947,-161.57525688,0.00014889,2]
[405117385,1770855669970,-1200.0,0.00014897,2]
[405117386,1770855669993,-501.8709088,0.00014898,2]
[405117387,1770855670022,-500.0,0.00014898,2]
[405117388,1770855670048,-500.0,0.00014898,2]
[405117389,1770855670076,-500.0,0.00014898,2]
[405117390,1770855670103,-500.0,0.00014898,2]
[405117391,1770855670130,-500.0,0.00014898,2]
[405117392,1770855670158,-500.0,0.00014898,2]
[405117393,1770855670185,-500.0,0.00014898,2]
[405117394,1770855670214,-500.0,0.00014898,2]
[405117395,1770855670241,-500.0,0.00014898,2]
[405117396,1770855670269,-500.0,0.00014898,2]
[405117397,1770855670298,-500.0,0.00014898,2]
[405117398,1770855670324,-500.0,0.00014898,2]
[405117399,1770855670350,-500.0,0.00014898,2]
[405117400,1770855670376,-250.9234975,0.00014898,2]
[405117401,1770855670402,-500.0,0.00014898,2]
[405117402,1770855670429,-500.0,0.00014898,2]
[405117403,1770855670454,-500.0,0.00014898,2]
[405117404,1770855670481,-500.0,0.00014898,2]
[405117405,1770855670507,-244.66721456,0.00014898,2]
[405117406,1770855670534,-500.0,0.00014898,2]
[405117407,1770855670562,-500.0,0.00014898,2]
[405117408,1770855670588,-500.0,0.00014898,2]
[405117409,1770855670614,-559.69984441,0.00014898,2]
[405117410,1770855670637,-500.0,0.00014898,2]
[405117411,1770855670660,-500.0,0.00014898,2]
[405117412,1770855670683,-500.0,0.00014898,2]
[405117413,1770855670707,-403.84968042,0.00014898,2]
[405117414,1770855670962,-500.0,0.00014898,2]
[405117415,1770855670990,-500.0,0.00014898,2]
[405117416,1770855671020,-288.55538268,0.00014898,2]
[405117417,1770855671047,-500.0,0.00014898,2]
[405117418,1770855671073,-500.0,0.00014898,2]
[405117419,1770855671098,-288.55538268,0.00014898,2]
[405117420,1770855671123,-500.0,0.00014898,2]
[405117421,1770855671149,-500.0,0.00014898,2]
[405117422,1770855671174,-288.55538268,0.00014898,2]
[405117423,1770855671200,-500.0,0.00014898,2]
[405117425,1770855671228,-500.0,0.00014898,2]
[405117426,1770855671255,-288.55538268,0.00014898,2]
[405117428,1770855671282,-500.0,0.00014898,2]
[405117429,1770855671307,-288.55538268,0.00014898,2]
[405117431,1770855671332,-500.0,0.00014898,2]
[405117432,1770855671358,-500.0,0.00014898,2]
[405117434,1770855671384,-288.55538268,0.00014898,2]
[405117435,1770855671409,-500.0,0.00014898,2]
[405117436,1770855671434,-705758.56795127,0.00014899,2]
[405117448,1770855892412,158.09,0.00010345,2]
[405117449,1770855892603,158.09,0.00011231,2]
[405117450,1770855892802,158.09,0.00012118,2]
[405117486,1770856146281,2000.0,0.0003561,120]
[405117508,1770856181692,-158.09,0.00013005,2]
[405117509,1770856181718,-158.09,0.00013891,2]
[405117510,1770856181744,-249.97061294,0.000145,3]
[405117511,1770856181771,-309.9529807,0.000145,3]
[405117512,1770856181797,-324.94857265,0.000145,3]
[405117513,1770856181820,-171.04498271,0.00014598,2]
[405117514,1770856181845,-163.18432866,0.00014598,2]
[405117515,1770856181870,-2609.60683241,0.00014598,2]
[405117516,1770856181894,-1226.57816448,0.00014598,2]
[405117517,1770856181917,-185.26611675,0.00014598,2]
[405117518,1770856181940,-682.81089278,0.00014598,2]
[405117519,1770856181963,-500.0,0.00014599,2]
[405117520,1770856181988,-300.0,0.000146,5]
[405117521,1770856182011,-732.411,0.00014601,2]
[405117522,1770856182034,-158.57,0.00014684,2]
[405117523,1770856182059,-171.26705019,0.00014697,2]
[405117524,1770856182082,-500.0,0.00014697,2]
[405117525,1770856182106,-332.69477629,0.00014697,2]
[405117526,1770856182130,-351.30963616,0.00014697,2]
[405117527,1770856182157,-500.0,0.00014697,2]
[405117528,1770856182180,-218.62213783,0.00014697,2]
[405117529,1770856182204,-334.76577731,0.00014697,2]
[405117530,1770856182233,-500.0,0.00014697,2]
[405117531,1770856182262,-500.0,0.00014697,2]
[405117532,1770856182290,-500.0,0.00014697,2]
[405117533,1770856182318,-500.0,0.00014697,2]
[405117534,1770856182346,-500.0,0.00014697,2]
[405117535,1770856182379,-500.0,0.00014697,2]
[405117536,1770856182409,-500.0,0.00014697,2]
[405117537,1770856182431,-358.32105063,0.00014697,2]
[405117538,1770856182460,-500.0,0.00014697,2]
[405117539,1770856182488,-500.0,0.00014697,2]
[405117540,1770856182516,-500.0,0.00014697,2]
[405117541,1770856182544,-500.0,0.00014697,2]
[405117542,1770856182573,-82.49508751,0.00014697,2]
[405117561,1770856231907,-820.05050554,0.000145,3]
[405117562,1770856231917,-163.18432866,0.000146,2]
[405117563,1770856231927,-161.57525688,0.00014688,2]
[405117564,1770856231937,-1200.0,0.00014696,2]
[405117565,1770856231947,-417.50491249,0.00014697,2]
[405117566,1770856231957,-500.0,0.00014697,2]
[405117567,1770856231967,-500.0,0.00014697,2]
[405117568,1770856231977,-500.0,0.00014697,2]
[405117569,1770856231986,-500.0,0.00014697,2]
[405117570,1770856231996,-500.0,0.00014697,2]
[405117571,1770856232006,-500.0,0.00014697,2]
[405117572,1770856232015,-500.0,0.00014697,2]
[405117573,1770856232025,-500.0,0.00014697,2]
[405117574,1770856232035,-500.0,0.00014697,2]
[405117575,1770856232044,-500.0,0.00014697,2]
[405117576,1770856232053,-500.0,0.00014697,2]
[405117577,1770856232063,-500.0,0.00014697,2]
[405117578,1770856232074,-500.0,0.00014697,2]
[405117579,1770856232083,-500.0,0.00014697,2]
[405117580,1770856232094,-500.0,0.00014697,2]
[405117581,1770856232104,-501.15719979,0.00014697,2]
[405117582,1770856232113,-500.0,0.00014697,2]
[405117583,1770856232124,-500.0,0.00014697,2]
[405117584,1770856232134,-500.0,0.00014697,2]
[405117585,1770856232143,-500.0,0.00014697,2]
[405117586,1770856232154,-500.0,0.00014697,2]
[405117588,1770856232163,-500.0,0.00014697,2]
[405117590,1770856232172,-500.0,0.00014697,2]
[405117592,1770856232182,-500.0,0.00014697,2]
[405117594,1770856232191,-500.0,0.00014697,2]
[405117596,1770856232201,-500.0,0.00014697,2]
[405117599,1770856232210,-500.0,0.00014697,2]
[405117600,1770856232220,-500.0,0.00014697,2]
[405117602,1770856232229,-500.0,0.00014697,2]
[405117604,1770856232239,-500.0,0.00014697,2]
[405117606,1770856232249,-500.0,0.00014697,2]
[405117608,1770856232259,-500.0,0.00014697,2]
[405117611,1770856232269,-500.0,0.00014697,2]
[405117612,1770856232279,-500.0,0.00014697,2]
[405117615,1770856232289,-500.0,0.00014697,2]
[405117617,1770856232299,-500.0,0.00014697,2]
[405117618,1770856232308,-500.0,0.00014697,2]
[405117621,1770856232318,-500.0,0.00014697,2]
[405117623,1770856232328,-500.0,0.00014697,2]
[405117624,1770856232338,-500.0,0.00014697,2]
[405117626,1770856232347,-500.0,0.00014697,2]
[405117628,1770856232357,-500.0,0.00014697,2]
[405117631,1770856232366,-500.0,0.00014697,2]
[405117632,1770856232376,-500.0,0.00014697,2]
[405117635,1770856232390,-500.0,0.00014697,2]
[405117636,1770856232399,-500.0,0.00014697,2]
[405117639,1770856232409,-500.0,0.00014697,2]
[405117641,1770856232419,-500.0,0.00014697,2]
[405117642,1770856232429,-500.0,0.00014697,2]
[405117644,1770856232439,-500.0,0.00014697,2]
[405117647,1770856232448,-500.0,0.00014697,2]
[405117649,1770856232459,-500.0,0.00014697,2]
[405117650,1770856232469,-500.0,0.00014697,2]
[405117653,1770856232479,-500.0,0.00014697,2]
[405117654,1770856232488,-500.0,0.00014697,2]
[405117656,1770856232498,-500.0,0.00014697,2]
[405117658,1770856232507,-500.0,0.00014697,2]
[405117661,1770856232517,-500.0,0.00014697,2]
[405117663,1770856232527,-500.0,0.00014697,2]
[405117664,1770856232536,-500.0,0.00014697,2]
[405117666,1770856232547,-500.0,0.00014697,2]
[405117668,1770856232556,-500.0,0.00014697,2]
[405117670,1770856232566,-500.0,0.00014697,2]
[405117671,1770856232575,-444.61928431,0.00014697,2]
[405117672,1770856232588,-500.0,0.00014697,2]
[405117673,1770856232598,-500.0,0.00014697,2]
[405117674,1770856232611,-500.0,0.00014697,2]
[405117675,1770856232621,-500.0,0.00014697,2]
[405117676,1770856232631,-500.0,0.00014697,2]
[405117677,1770856232640,-500.0,0.00014697,2]
[405117678,1770856232650,-500.0,0.00014697,2]
[405117679,1770856232659,-500.0,0.00014697,2]
[405117680,1770856232669,-500.0,0.00014697,2]
[405117681,1770856232681,-500.0,0.00014697,2]
[405117682,1770856232692,-500.0,0.00014697,2]
[405117683,1770856232701,-272.0,0.00014697,2]
[405117684,1770856232711,-993938.91302135,0.00014698,2]
[405117685,1770856232723,-225511.20122804,0.00014698,2]
[405117686,1770856232736,-177741.43200967,0.00014698,2]
[405117687,1770856232748,-159098.09700043,0.00014698,2]
[405117688,1770856232759,-1254.41808677,0.00014698,2]
[405117689,1770856233650,-4199.22456915,0.00014698,2]
[405117690,1770856233661,-1752.85646203,0.00014698,2]
[405117691,1770856233684,-938.55,0.00014698,2]
[405117692,1770856233695,-552.05808685,0.00014698,2]
[405117835,1770856239937,-1728.3134399,0.00014698,2]
[405117836,1770856239948,-1346418.43568922,0.00014698,2]
[405117837,1770856240408,-8777.49677349,0.00014698,2]
[405117838,1770856240419,-8947.21879473,0.00014698,2]
[405117839,1770856240432,-8943.78386462,0.00014698,2]
[405117840,1770856240443,-9077.54866152,0.00014698,2]
[405117842,1770856245442,-185.26611675,0.000146,2]
[405117843,1770856245452,-1862.86321666,0.00014698,2]
[405117844,1770856246373,-140.98208419,0.00014698,2]
[405117888,1770856567076,165.0,0.000356,120]
[405117906,1770856617989,164.73,0.000356,120]
[405117911,1770856693058,1577.28,0.00011741,2]
[405117913,1770856754866,31584.34212129,0.00035616,120]
[405117928,1770856812759,4782.12289748,0.00035164,120]
[405117964,1770857220155,200.0,0.000136,4]
[405117965,1770857222245,500.0,0.000137,5]
[405117966,1770857224340,800.0,0.000138,5]
[405117967,1770857226430,1100.0,0.000139,5]
[405117979,1770857432069,-166.66,0.00013153,2]
[405117980,1770857432076,-150.0,0.00013899,2]
[405117981,1770857432083,-1000.0,0.00013924,2]
[405117982,1770857432090,-570.46,0.00013943,2]
[405117983,1770857432098,-22.83701801,0.000141,2]
[405117984,1770857432108,-495.27884649,0.000141,2]
[405117985,1770857432116,-198.24232058,0.000141,2]
[405117986,1770857432126,-540.74306262,0.000141,2]
[405117987,1770857432134,-646.08308058,0.000141,2]
[405117988,1770857432144,-148.1196823,0.000141,2]
[405117989,1770857432151,-730.35421433,0.000141,2]
[405117990,1770857432177,-708.27235126,0.000141,2]
[405117991,1770857432186,-1138.86073867,0.000141,2]
[405117992,1770857432193,-790.41305366,0.00014187,2]
[405117993,1770857432202,-409.58694634,0.00014187,2]
[405117994,1770857432209,-51.85706509,0.00014188,2]
[405117995,1770857432250,-1482.9015306,0.00014188,2]
[405117996,1770857432261,-813.88755347,0.00014188,2]
[405117997,1770857432271,-178.09299006,0.00014188,2]
[405117998,1770857432282,-23.18233527,0.00014188,2]
[405118001,1770857432322,-162.08378148,0.00014188,2]
[405118003,1770857432331,-504.88292366,0.00014188,2]
[405118005,1770857432343,-266.38014877,0.00014188,2]
[405118008,1770857432355,-159.73037362,0.00014188,2]
[405118010,1770857432364,-90.62425939,0.00014198,2]
[405118012,1770857432375,-361.04264806,0.00014198,2]
[405118014,1770857432387,-460.68209255,0.00014198,2]
[405118016,1770857432396,-31.73568047,0.00014287,2]
[405118018,1770857432407,-149.43113966,0.00014287,2]
[405118020,1770857432416,-500.0,0.00014287,2]
[405118023,1770857432425,-616.33724513,0.00014287,2]
[405118026,1770857432436,-988.6885,0.00014288,2]
[405118028,1770857432446,-10000.0,0.00014288,2]
[405118030,1770857432455,-72213.73542962,0.00014288,2]
[405118057,1770857438142,-539.52193569,0.00014287,2]
[405118058,1770857438152,-1480.47806431,0.00014288,2]
[405118059,1770857438197,-1277.27139037,0.00014288,2]
[405118066,1770857440355,-596.298,0.00014288,2]
[405118067,1770857440367,-3424432.2171157,0.00014288,2]
[405118068,1770857440376,-2500.0,0.00014288,2]
[405118069,1770857440386,-1103.92034805,0.00014288,2]
[405118070,1770857440395,-500.0,0.00014387,2]
[405118071,1770857440405,-500.0,0.00014387,2]
[405118072,1770857440415,-1000.0,0.00014388,2]
[405118073,1770857440424,-172.77481085,0.00014398,2]
[405118074,1770857440433,-338.45,0.00014438,2]
[405118075,1770857440443,-29999.99,0.00014438,2]
[405118076,1770857440452,-150.99,0.00014479,2]
[405118077,1770857440461,-1356.29,0.00014479,2]
[405118078,1770857440471,-9999.99,0.00014479,2]
[405118079,1770857440481,-270.53,0.00014479,2]
[405118080,1770857440491,-280.51398218,0.00014479,2]
[405118081,1770857440501,-2348.64614911,0.000146,2]
[405118082,1770857440511,-1103.92034799,0.00014689,2]
[405118083,1770857440521,-397.5693239,0.00014698,2]
[405118084,1770857440530,-166.1012617,0.00014698,2]
[405118085,1770857440540,-200.0,0.00014698,2]
[405118086,1770857440550,-166.0941913,0.00014698,2]
[405118087,1770857440560,-13263.9369334,0.00014698,2]
[405118089,1770857440570,-493460.6295846,0.00014698,2]
[405118090,1770857440580,-94285.2798475,0.00014698,2]
[405118091,1770857440589,-200.0,0.00014748,2]
[405118092,1770857440599,-158.09,0.00014778,2]
[405118094,1770857440608,-200.0,0.00014845,2]
[405118095,1770857440618,-1852.42,0.00014879,2]
[405118096,1770857440628,-37105.3028056,0.00014899,2]
[405118097,1770857440637,-1400.0,0.000149,5]
[405118098,1770857440647,-478.64,0.00014943,2]
[405118099,1770857440657,-200.0,0.00014993,2]
[405118100,1770857440666,-151.72615529,0.00015,2]
[405118101,1770857440675,-2348.64614911,0.00015013,2]
[405118102,1770857440685,-1103.92034799,0.00015091,2]
[405118103,1770857440694,-200.0,0.00015143,2]
[405118104,1770857440704,-338.45,0.00015159,2]
[405118105,1770857440713,-200.0,0.00015295,2]
[405118106,1770857440723,-2348.64614911,0.00015425,2]
[405118107,1770857440734,-1103.92034799,0.00015492,2]
[405118108,1770857440745,-158.57,0.00015602,2]
[405118109,1770857440755,-1680.0,0.00015606,2]
[405118110,1770857440763,-379.9324499,0.0001561,2]
[405118111,1770857440772,-1000.0,0.00015664,2]
[405118112,1770857440782,-205.17,0.00015709,2]
[405118113,1770857440792,-250.5,0.00015747,2]
[405118114,1770857440801,-2348.64614911,0.00015838,2]
[405118115,1770857440812,-200.0,0.00015861,2]
[405118116,1770857440821,-338.45,0.00015881,2]
[405118117,1770857440830,-1103.92034799,0.00015893,2]
[405118118,1770857440838,-1527.66,0.00016023,2]
[405118119,1770857440847,-178.09299004,0.00016044,2]
[405118120,1770857440856,-930.99344605,0.00016044,2]
[405118121,1770857440866,-1300.0,0.00016082,2]
[405118122,1770857440875,-2348.64614911,0.0001625,2]
[405118123,1770857440885,-397.5693239,0.00016271,2]
[405118124,1770857440894,-248.12015497,0.00016286,2]
[405118125,1770857440903,-1103.92034799,0.00016295,2]
[405118126,1770857440912,-500.0,0.00016356,2]
[405118127,1770857440923,-500.0,0.00016356,2]
[405118128,1770857440932,-166.66,0.00016429,2]
[405118129,1770857440942,-1000.0,0.00016438,2]
[405118130,1770857440951,-906.0,0.00016453,2]
[405118131,1770857440960,-160.0,0.00016461,2]
[405118132,1770857440970,-158.57,0.0001652,2]
[405118133,1770857440980,-3000.0,0.000166,2]
[405118134,1770857440990,-338.45,0.00016603,2]
[405118135,1770857440999,-2348.64614911,0.00016663,2]
[405118136,1770857441009,-1103.92034799,0.00016696,2]
[405118137,1770857441020,-1000.0,0.00016712,2]
[405118138,1770857441029,-3895.0,0.00016799,2]
[405118139,1770857441040,-478.64,0.00016811,2]
[405118140,1770857441050,-8279.3121573,0.0001682,2]
[405118141,1770857441060,-165.72983817,0.0001692,2]
[405118142,1770857441070,-906.0,0.00016957,2]
[405118143,1770857441081,-166.66,0.00016971,2]
[405118144,1770857441091,-1000.0,0.00016986,2]
[405118145,1770857441102,-160.0,0.0001704,2]
[405118146,1770857441112,-2348.64614911,0.00017075,2]
[405118147,1770857441122,-1103.92034799,0.00017097,2]
[405118148,1770857441131,-250.5,0.00017117,2]
[405118149,1770857441141,-2351.0,0.00017166,2]
[405118150,1770857441151,-2000.0,0.000172,2]
[405118151,1770857441161,-1847.3642475,0.00017248,2]
[405118152,1770857441170,-1000.0,0.0001726,2]
[405118153,1770857441180,-2959.5843721,0.0001732,2]
[405118154,1770857441190,-338.45,0.00017325,2]
[405118155,1770857441199,-2000.0,0.000174,2]
[405118156,1770857441209,-1000.0,0.00017405,2]
[405118157,1770857441219,-158.57,0.00017438,2]
[405118158,1770857441228,-1300.0,0.00017452,7]
[405118159,1770857441238,-906.0,0.00017462,2]
[405118160,1770857441248,-2348.64614911,0.00017488,2]
[405118161,1770857441257,-1103.92034799,0.00017499,2]
[405118162,1770857441267,-200.0,0.000175,6]
[405118163,1770857441277,-166.66,0.00017514,2]
[405118164,1770857441287,-110105.9493061,0.0001752,2]
[405118165,1770857441296,-21037.889592,0.0001752,2]
[405118166,1770857441306,-1000.0,0.00017534,2]
[405118167,1770857441315,-200.0,0.000176,6]
[405118168,1770857441325,-2793.21248976,0.0001764,2]
[405118169,1770857441336,-1288.0,0.0001767,2]
[405118170,1770857441345,-1337.0,0.0001767,2]
[405118171,1770857441355,-617.0,0.0001767,2]
[405118172,1770857441365,-3487.0,0.0001767,2]
[405118173,1770857441375,-1273.0,0.0001767,2]
[405118174,1770857441384,-150.0,0.0001767,2]
[405118175,1770857441394,-918.0,0.0001767,2]
[405118176,1770857441404,-1207.0,0.0001767,2]
[405118177,1770857441413,-151.0,0.0001767,2]
[405118178,1770857441422,-213.0,0.0001767,2]
[405118179,1770857441432,-5966.0,0.0001767,2]
[405118180,1770857441441,-6590.0,0.0001767,2]
[405118181,1770857441450,-2449.0,0.0001767,2]
[405118182,1770857441461,-841.0,0.0001768,2]